[Event "*** Titled Tuesday Blitz"]
[Site "Chess.com"]
[Date "2020.03.03"]
[Round "4"]
[White "Manukyan_Artak"]
[Black "Andrew-FB00"]
[Result "1-0"]
[WhiteElo "2418"]
[BlackElo "1870"]
[TimeControl "180+1"]
[EndTime "9:41:46 PST"]
[Termination "Manukyan_Artak won by resignation"]

1. e4 {[%clk 0:03:00.9]} 1... e5 {[%clk 0:02:58.3]} 2. Nf3 {[%clk 0:03:00.6]}
2... Nc6 {[%clk 0:02:57.1]} 3. d4 {[%clk 0:03:00.7]} 3... exd4 {[%clk
0:02:56.3]} 4. Nxd4 {[%clk 0:03:01.6]} 4... Bc5 {[%clk 0:02:53.1]} 5. Nxc6
{[%clk 0:03:01.3]} 5... Qf6 {[%clk 0:02:52.6]} 6. Qf3 {[%clk 0:03:01.1]} 6...
Qxf3 {[%clk 0:02:51.7]} 7. gxf3 {[%clk 0:03:00.5]} 7... dxc6 {[%clk 0:02:52.3]}
8. Bc4 {[%clk 0:02:58.4]} 8... Ne7 {[%clk 0:02:47.5]} 9. Be3 {[%clk 0:02:55.7]}
9... Bb6 {[%clk 0:02:45.6]} 10. Ke2 {[%clk 0:02:51.5]} 10... Ng6 {[%clk
0:02:27.9]} 11. Nd2 {[%clk 0:02:41.1]} 11... Ke7 {[%clk 0:02:19.2]} 12. h4
{[%clk 0:02:39.6]} 12... Be6 {[%clk 0:02:14]} 13. f4 {[%clk 0:02:35.3]} 13...
Bxc4+ {[%clk 0:02:09.8]} 14. Nxc4 {[%clk 0:02:36.2]} 14... f6 {[%clk 0:02:04.9]}
15. h5 {[%clk 0:02:22.9]} 15... Nf8 {[%clk 0:01:59.4]} 16. Rag1 {[%clk
0:02:20.8]} 16... Rg8 {[%clk 0:01:52.4]} 17. f5 {[%clk 0:02:08.4]} 17... Rd8
{[%clk 0:01:42.9]} 18. Rg4 {[%clk 0:02:03.2]} 18... Nd7 {[%clk 0:01:41.5]} 19.
Rhg1 {[%clk 0:02:00.5]} 19... Kf7 {[%clk 0:01:36.7]} 20. f4 {[%clk 0:01:44.6]}
20... Bxe3 {[%clk 0:01:26.6]} 21. Kxe3 {[%clk 0:01:43.1]} 21... Nc5 {[%clk
0:01:25.4]} 22. e5 {[%clk 0:01:38.9]} 22... fxe5 {[%clk 0:01:20.8]} 23. fxe5
{[%clk 0:01:38.5]} 23... Rde8 {[%clk 0:01:15.5]} 24. b4 {[%clk 0:01:28.1]} 24...
Nd7 {[%clk 0:01:09.3]} 25. Kf4 {[%clk 0:01:23.2]} 25... Nb6 {[%clk 0:01:06.3]}
26. e6+ {[%clk 0:01:20.1]} 26... Kf6 {[%clk 0:01:05.7]} 27. Nxb6 {[%clk
0:01:13.2]} 27... cxb6 {[%clk 0:01:01.8]} 28. Rd1 {[%clk 0:01:06.6]} 28... Rd8
{[%clk 0:00:59.7]} 29. Rgg1 {[%clk 0:01:06.4]} 29... Rge8 {[%clk 0:00:54.1]} 30.
c4 {[%clk 0:00:49.2]} 30... Rxd1 {[%clk 0:00:51.3]} 31. Rxd1 {[%clk 0:00:48.6]}
31... Re7 {[%clk 0:00:51.1]} 32. Rd8 {[%clk 0:00:42.8]} 32... g6 {[%clk
0:00:49.7]} 33. hxg6 {[%clk 0:00:38.5]} 33... hxg6 {[%clk 0:00:48.9]} 34. Rf8+
{[%clk 0:00:36.3]} 34... Kg7 {[%clk 0:00:47.9]} 35. Ra8 {[%clk 0:00:32.2]} 35...
a6 {[%clk 0:00:39.3]} 36. Ke5 {[%clk 0:00:31.3]} 36... gxf5 {[%clk 0:00:37.9]}
37. Kxf5 {[%clk 0:00:32.2]} 37... c5 {[%clk 0:00:34.8]} 38. bxc5 {[%clk
0:00:30.1]} 38... bxc5 {[%clk 0:00:34.2]} 39. Rd8 {[%clk 0:00:30.7]} 39... b5
{[%clk 0:00:32.9]} 40. Rd7 {[%clk 0:00:30.5]} 40... Kf8 {[%clk 0:00:32.3]} 41.
Kf6 {[%clk 0:00:30.8]} 41... Rxe6+ {[%clk 0:00:24.7]} 42. Kxe6 {[%clk
0:00:30.4]} 42... bxc4 {[%clk 0:00:25]} 43. Rc7 {[%clk 0:00:29.4]} 1-0

[Event "*** Titled Tuesday Blitz"]
[Site "Chess.com"]
[Date "2020.03.03"]
[Round "4"]
[White "vugarrasulov"]
[Black "Monmoransy"]
[Result "1-0"]
[WhiteElo "2890"]
[BlackElo "2592"]
[TimeControl "180+1"]
[EndTime "9:41:47 PST"]
[Termination "vugarrasulov won by resignation"]

1. e4 {[%clk 0:03:00.9]} 1... c5 {[%clk 0:02:59.7]} 2. Nf3 {[%clk 0:03:00.2]}
2... Nc6 {[%clk 0:03:00.1]} 3. d4 {[%clk 0:03:00.5]} 3... cxd4 {[%clk
0:02:59.6]} 4. Nxd4 {[%clk 0:03:01.4]} 4... Nf6 {[%clk 0:03:00.1]} 5. Nc3 {[%clk
0:03:01.9]} 5... g6 {[%clk 0:03:00.5]} 6. Nxc6 {[%clk 0:03:00.6]} 6... dxc6
{[%clk 0:03:01.4]} 7. e5 {[%clk 0:03:01.1]} 7... Qxd1+ {[%clk 0:02:59.5]} 8.
Nxd1 {[%clk 0:03:00.7]} 8... Ng4 {[%clk 0:02:59]} 9. f4 {[%clk 0:02:57.4]} 9...
Bf5 {[%clk 0:02:58.2]} 10. h3 {[%clk 0:02:55.4]} 10... Nh6 {[%clk 0:02:58.1]}
11. Ne3 {[%clk 0:02:55.6]} 11... Be4 {[%clk 0:02:58.1]} 12. Bd3 {[%clk
0:02:48.1]} 12... Bxd3 {[%clk 0:02:56.9]} 13. cxd3 {[%clk 0:02:49]} 13... O-O-O
{[%clk 0:02:56.7]} 14. Ke2 {[%clk 0:02:46.9]} 14... Nf5 {[%clk 0:02:56.4]} 15.
Nxf5 {[%clk 0:02:40.7]} 15... gxf5 {[%clk 0:02:56.1]} 16. g4 {[%clk 0:02:41.1]}
16... e6 {[%clk 0:02:35.9]} 17. Be3 {[%clk 0:02:38.4]} 17... b6 {[%clk
0:02:30.2]} 18. gxf5 {[%clk 0:02:37.8]} 18... exf5 {[%clk 0:02:29.7]} 19. Rhg1
{[%clk 0:02:38.4]} 19... Bh6 {[%clk 0:02:24.3]} 20. a4 {[%clk 0:02:36.6]} 20...
Kb7 {[%clk 0:02:23]} 21. a5 {[%clk 0:02:36.5]} 21... Rhg8 {[%clk 0:02:20.3]} 22.
axb6 {[%clk 0:02:28.6]} 22... axb6 {[%clk 0:02:19.4]} 23. d4 {[%clk 0:02:28.8]}
23... Rg6 {[%clk 0:02:15.3]} 24. Kf3 {[%clk 0:02:18.2]} 24... Ra8 {[%clk
0:02:11.6]} 25. Rxa8 {[%clk 0:02:13.9]} 25... Kxa8 {[%clk 0:02:11.4]} 26. Rd1
{[%clk 0:02:12.4]} 26... Kb7 {[%clk 0:02:05.7]} 27. d5 {[%clk 0:02:12.4]} 27...
cxd5 {[%clk 0:02:05.5]} 28. Rxd5 {[%clk 0:02:13.3]} 28... Rc6 {[%clk 0:02:05.3]}
29. Rd8 {[%clk 0:01:55.1]} 29... f6 {[%clk 0:01:53]} 30. Rd7+ {[%clk 0:01:52.3]}
30... Ka6 {[%clk 0:01:43.8]} 31. Rxh7 {[%clk 0:01:51.1]} 31... fxe5 {[%clk
0:01:43.7]} 32. fxe5 {[%clk 0:01:52]} 32... Bxe3 {[%clk 0:01:41.6]} 33. Kxe3
{[%clk 0:01:52.9]} 33... Rc4 {[%clk 0:01:42]} 34. Kf3 {[%clk 0:01:40.9]} 34...
Re4 {[%clk 0:01:30.8]} 35. Re7 {[%clk 0:01:06.1]} 35... Kb5 {[%clk 0:01:24.5]}
36. Kg3 {[%clk 0:00:55.6]} 36... Re3+ {[%clk 0:01:06.6]} 37. Kh4 {[%clk
0:00:49.6]} 37... Kc6 {[%clk 0:00:52.2]} 38. e6 {[%clk 0:00:44.4]} 38... Rb3
{[%clk 0:00:48.2]} 39. Ra7 {[%clk 0:00:34.7]} 39... Rxb2 {[%clk 0:00:44.2]} 40.
e7 {[%clk 0:00:34.9]} 40... Re2 {[%clk 0:00:43.9]} 41. Kg5 {[%clk 0:00:35.3]}
41... Kd6 {[%clk 0:00:40.2]} 42. Kf6 {[%clk 0:00:34.8]} 42... f4 {[%clk
0:00:40.4]} 43. Kf7 {[%clk 0:00:31]} 43... f3 {[%clk 0:00:32.5]} 44. e8=Q {[%clk
0:00:31.1]} 44... Rxe8 {[%clk 0:00:30.3]} 45. Kxe8 {[%clk 0:00:32]} 45... Ke5
{[%clk 0:00:28]} 46. Rf7 {[%clk 0:00:32.9]} 1-0

[Event "*** Titled Tuesday Blitz"]
[Site "Chess.com"]
[Date "2020.03.03"]
[Round "4"]
[White "Saloni1299"]
[Black "shanemelaughcm"]
[Result "1-0"]
[WhiteElo "2048"]
[BlackElo "2249"]
[TimeControl "180+1"]
[EndTime "9:41:50 PST"]
[Termination "Saloni1299 won by checkmate"]

1. e4 {[%clk 0:03:00.9]} 1... d6 {[%clk 0:02:59.4]} 2. d4 {[%clk 0:02:59.9]}
2... Nf6 {[%clk 0:03:00.1]} 3. Nc3 {[%clk 0:02:54.3]} 3... Nbd7 {[%clk
0:03:00.3]} 4. f4 {[%clk 0:02:53.6]} 4... e5 {[%clk 0:03:01.2]} 5. Nf3 {[%clk
0:02:48.7]} 5... exd4 {[%clk 0:03:01.9]} 6. Nxd4 {[%clk 0:02:48.1]} 6... c6
{[%clk 0:03:01.8]} 7. Be2 {[%clk 0:02:44.4]} 7... d5 {[%clk 0:02:59.9]} 8. e5
{[%clk 0:02:42]} 8... Ne4 {[%clk 0:02:51.5]} 9. Nxe4 {[%clk 0:02:40.5]} 9...
dxe4 {[%clk 0:02:52.4]} 10. O-O {[%clk 0:02:38.7]} 10... Bc5 {[%clk 0:02:53.1]}
11. Kh1 {[%clk 0:02:34.4]} 11... O-O {[%clk 0:02:51.8]} 12. c3 {[%clk
0:02:23.9]} 12... Nb6 {[%clk 0:02:51.2]} 13. Nb3 {[%clk 0:02:17.5]} 13... Qe7
{[%clk 0:02:20.2]} 14. Qc2 {[%clk 0:02:13.6]} 14... Bf5 {[%clk 0:02:15.9]} 15.
Nxc5 {[%clk 0:01:56.9]} 15... Qxc5 {[%clk 0:02:15.8]} 16. b4 {[%clk 0:01:56.8]}
16... Qe7 {[%clk 0:02:09.5]} 17. c4 {[%clk 0:01:55]} 17... Qxb4 {[%clk 0:02:04]}
18. Be3 {[%clk 0:01:48.7]} 18... Qa4 {[%clk 0:01:54.7]} 19. Qc3 {[%clk
0:01:42.4]} 19... Be6 {[%clk 0:01:40.8]} 20. Rfc1 {[%clk 0:01:40.3]} 20... Rad8
{[%clk 0:01:34.2]} 21. Bc5 {[%clk 0:01:18]} 21... Rfe8 {[%clk 0:01:33]} 22. Bd6
{[%clk 0:01:18]} 22... Nc8 {[%clk 0:01:24.9]} 23. c5 {[%clk 0:01:15.2]} 23...
Nxd6 {[%clk 0:01:23.5]} 24. cxd6 {[%clk 0:01:16.1]} 24... Bd5 {[%clk 0:01:10.4]}
25. Rcb1 {[%clk 0:01:11.6]} 25... b5 {[%clk 0:01:10.6]} 26. Rb4 {[%clk
0:01:05.5]} 26... Qa5 {[%clk 0:01:09.8]} 27. a4 {[%clk 0:01:02.1]} 27... Qb6
{[%clk 0:00:48.2]} 28. axb5 {[%clk 0:01:00.5]} 28... cxb5 {[%clk 0:00:38.2]} 29.
Rxb5 {[%clk 0:00:59.2]} 29... Qf2 {[%clk 0:00:37.2]} 30. Rxd5 {[%clk 0:00:48.9]}
30... Qxe2 {[%clk 0:00:37.4]} 31. Re1 {[%clk 0:00:49.1]} 31... Qf2 {[%clk
0:00:32.6]} 32. Qe3 {[%clk 0:00:44.2]} 32... Qxe3 {[%clk 0:00:27.1]} 33. Rxe3
{[%clk 0:00:44.2]} 33... f5 {[%clk 0:00:23.1]} 34. Rc3 {[%clk 0:00:34.9]} 34...
Rd7 {[%clk 0:00:21.5]} 35. h3 {[%clk 0:00:34.6]} 35... g6 {[%clk 0:00:21.5]} 36.
Rc7 {[%clk 0:00:33.3]} 36... Red8 {[%clk 0:00:19.6]} 37. Rxd7 {[%clk 0:00:32.8]}
37... Rxd7 {[%clk 0:00:18.1]} 38. e6 {[%clk 0:00:33.4]} 38... Rb7 {[%clk
0:00:16.7]} 39. d7 {[%clk 0:00:33.5]} 39... Rb1+ {[%clk 0:00:15.5]} 40. Kh2
{[%clk 0:00:34]} 40... Kg7 {[%clk 0:00:16.4]} 41. d8=Q {[%clk 0:00:33.5]} 41...
e3 {[%clk 0:00:16]} 42. Rd7+ {[%clk 0:00:33.4]} 42... Kh6 {[%clk 0:00:16.3]} 43.
Qh4# {[%clk 0:00:32.9]} 1-0

[Event "*** Titled Tuesday Blitz"]
[Site "Chess.com"]
[Date "2020.03.03"]
[Round "4"]
[White "bgfbfbgfbgfgf"]
[Black "jmduque"]
[Result "1-0"]
[WhiteElo "2646"]
[BlackElo "2442"]
[TimeControl "180+1"]
[EndTime "9:41:53 PST"]
[Termination "bgfbfbgfbgfgf won by checkmate"]

1. e4 {[%clk 0:03:00.9]} 1... e5 {[%clk 0:02:59.2]} 2. Nf3 {[%clk 0:03:00.9]}
2... Nc6 {[%clk 0:02:57.9]} 3. Bb5 {[%clk 0:03:01]} 3... a6 {[%clk 0:02:56.6]}
4. Ba4 {[%clk 0:03:01]} 4... Nf6 {[%clk 0:02:56.1]} 5. O-O {[%clk 0:03:01.1]}
5... Be7 {[%clk 0:02:56.2]} 6. d3 {[%clk 0:03:01.7]} 6... d6 {[%clk 0:02:52.9]}
7. a3 {[%clk 0:03:01.8]} 7... O-O {[%clk 0:02:52.9]} 8. Nc3 {[%clk 0:03:01.5]}
8... b5 {[%clk 0:02:49.8]} 9. Bb3 {[%clk 0:03:01.4]} 9... Na5 {[%clk 0:02:49.9]}
10. Ba2 {[%clk 0:03:02]} 10... c5 {[%clk 0:02:50]} 11. b4 {[%clk 0:03:02.3]}
11... Nc6 {[%clk 0:02:48.8]} 12. Nd5 {[%clk 0:03:02.9]} 12... Be6 {[%clk
0:02:45.5]} 13. Bd2 {[%clk 0:02:53]} 13... c4 {[%clk 0:02:43]} 14. Nxe7+ {[%clk
0:02:11.3]} 14... Qxe7 {[%clk 0:02:41.6]} 15. Bg5 {[%clk 0:02:10.6]} 15... cxd3
{[%clk 0:02:41.1]} 16. Qxd3 {[%clk 0:02:05.1]} 16... Bxa2 {[%clk 0:02:40.6]} 17.
Rxa2 {[%clk 0:02:05.2]} 17... Rad8 {[%clk 0:02:40.6]} 18. c4 {[%clk 0:02:01.1]}
18... Qe6 {[%clk 0:02:38.2]} 19. Rc2 {[%clk 0:02:00.7]} 19... Na7 {[%clk
0:02:26.5]} 20. Rd1 {[%clk 0:01:36.2]} 20... h6 {[%clk 0:02:22.9]} 21. Be3
{[%clk 0:01:32.7]} 21... bxc4 {[%clk 0:02:20.5]} 22. Qxc4 {[%clk 0:01:17.7]}
22... Rc8 {[%clk 0:02:19.3]} 23. Qxe6 {[%clk 0:00:39.3]} 23... fxe6 {[%clk
0:02:20.2]} 24. Rdc1 {[%clk 0:00:36.3]} 24... Rxc2 {[%clk 0:02:19.1]} 25. Rxc2
{[%clk 0:00:37.2]} 25... Nb5 {[%clk 0:02:18.9]} 26. a4 {[%clk 0:00:36.7]} 26...
Nd4 {[%clk 0:02:15.4]} 27. Bxd4 {[%clk 0:00:32.7]} 27... exd4 {[%clk 0:02:15.4]}
28. Nxd4 {[%clk 0:00:33.6]} 28... e5 {[%clk 0:02:07.5]} 29. Nc6 {[%clk
0:00:21.1]} 29... Nxe4 {[%clk 0:02:05.2]} 30. b5 {[%clk 0:00:21.4]} 30... axb5
{[%clk 0:02:04.1]} 31. axb5 {[%clk 0:00:22.3]} 31... Nc5 {[%clk 0:02:02.1]} 32.
Rd2 {[%clk 0:00:19.7]} 32... Ra8 {[%clk 0:01:55.9]} 33. h4 {[%clk 0:00:19.2]}
33... Ra1+ {[%clk 0:01:53.3]} 34. Kh2 {[%clk 0:00:19]} 34... Rb1 {[%clk
0:01:53.5]} 35. Rxd6 {[%clk 0:00:18.2]} 35... Rxb5 {[%clk 0:01:53.5]} 36. Nxe5
{[%clk 0:00:18.2]} 36... Ne4 {[%clk 0:01:52.4]} 37. Rd8+ {[%clk 0:00:18]} 37...
Kh7 {[%clk 0:01:52.7]} 38. Nd3 {[%clk 0:00:12.5]} 38... Rb3 {[%clk 0:01:51.7]}
39. f3 {[%clk 0:00:12.2]} 39... Nf6 {[%clk 0:01:51.1]} 40. g4 {[%clk 0:00:11.6]}
40... Rc3 {[%clk 0:01:47.4]} 41. h5 {[%clk 0:00:11.5]} 41... g6 {[%clk
0:01:37.8]} 42. hxg6+ {[%clk 0:00:11.5]} 42... Kxg6 {[%clk 0:01:37.7]} 43. Ne5+
{[%clk 0:00:11.7]} 43... Kg7 {[%clk 0:01:38.1]} 44. Kg3 {[%clk 0:00:12]} 44...
Rc1 {[%clk 0:01:35.9]} 45. Ra8 {[%clk 0:00:11.4]} 45... h5 {[%clk 0:01:34.6]}
46. g5 {[%clk 0:00:11.1]} 46... Rg1+ {[%clk 0:01:33.7]} 47. Kf4 {[%clk
0:00:11.5]} 47... Nd5+ {[%clk 0:01:33.7]} 48. Kf5 {[%clk 0:00:11.5]} 48... Ne7+
{[%clk 0:01:31.3]} 49. Ke6 {[%clk 0:00:11.8]} 49... Rxg5 {[%clk 0:01:28]} 50.
Ra7 {[%clk 0:00:11.5]} 50... Kf8 {[%clk 0:01:18.6]} 51. Nd7+ {[%clk 0:00:11.8]}
51... Kg7 {[%clk 0:01:14.1]} 52. Kxe7 {[%clk 0:00:12.1]} 52... Rg3 {[%clk
0:01:14.2]} 53. f4 {[%clk 0:00:10.6]} 53... Rf3 {[%clk 0:01:14.4]} 54. Ra4
{[%clk 0:00:09.3]} 54... h4 {[%clk 0:01:13.4]} 55. Ne5 {[%clk 0:00:09.8]} 55...
Rf1 {[%clk 0:01:09.9]} 56. Ke6 {[%clk 0:00:08.1]} 56... h3 {[%clk 0:01:09.4]}
57. Ra7+ {[%clk 0:00:08.6]} 57... Kh6 {[%clk 0:01:08.3]} 58. Kf5 {[%clk
0:00:08.4]} 58... h2 {[%clk 0:01:05]} 59. Ng4+ {[%clk 0:00:08.7]} 59... Kh5
{[%clk 0:01:03.6]} 60. Rh7# {[%clk 0:00:09.6]} 1-0

[Event "*** Titled Tuesday Blitz"]
[Site "Chess.com"]
[Date "2020.03.03"]
[Round "4"]
[White "Art_Vandelay1980"]
[Black "talman67"]
[Result "0-1"]
[WhiteElo "2770"]
[BlackElo "2559"]
[TimeControl "180+1"]
[EndTime "9:41:56 PST"]
[Termination "talman67 won on time"]

1. e4 {[%clk 0:03:00.9]} 1... e5 {[%clk 0:02:58]} 2. Nf3 {[%clk 0:03:00]} 2...
Nc6 {[%clk 0:02:56.5]} 3. Bb5 {[%clk 0:02:59.3]} 3... a6 {[%clk 0:02:56.5]} 4.
Ba4 {[%clk 0:02:58.8]} 4... Nf6 {[%clk 0:02:55.9]} 5. O-O {[%clk 0:02:57.5]}
5... Nxe4 {[%clk 0:02:56.2]} 6. d4 {[%clk 0:02:49.5]} 6... b5 {[%clk 0:02:55.6]}
7. Bb3 {[%clk 0:02:48.4]} 7... d5 {[%clk 0:02:56]} 8. dxe5 {[%clk 0:02:47.5]}
8... Be6 {[%clk 0:02:56.5]} 9. c3 {[%clk 0:02:38.4]} 9... Bc5 {[%clk 0:02:55.5]}
10. Nbd2 {[%clk 0:02:24.4]} 10... O-O {[%clk 0:02:54.5]} 11. Qe2 {[%clk
0:02:23]} 11... Nxd2 {[%clk 0:02:35.4]} 12. Bxd2 {[%clk 0:02:22.5]} 12... Bg4
{[%clk 0:02:36]} 13. h3 {[%clk 0:02:14.3]} 13... Bxf3 {[%clk 0:02:29.4]} 14.
Qxf3 {[%clk 0:02:13.8]} 14... Nxe5 {[%clk 0:02:29.9]} 15. Qh5 {[%clk 0:01:39.7]}
15... Re8 {[%clk 0:02:05.8]} 16. Bf4 {[%clk 0:01:19]} 16... Nd3 {[%clk
0:01:48.1]} 17. Bg3 {[%clk 0:01:09.4]} 17... c6 {[%clk 0:01:47.2]} 18. Bc2
{[%clk 0:01:02.1]} 18... g6 {[%clk 0:01:41.9]} 19. Qh6 {[%clk 0:00:54.5]} 19...
Nxb2 {[%clk 0:01:22]} 20. Rfe1 {[%clk 0:00:51.5]} 20... Qf6 {[%clk 0:01:18.3]}
21. Qd2 {[%clk 0:00:22.4]} 21... Nc4 {[%clk 0:00:56.2]} 22. Qd3 {[%clk
0:00:22.6]} 22... Re6 {[%clk 0:00:49.6]} 23. Rxe6 {[%clk 0:00:17.7]} 23... Qxe6
{[%clk 0:00:50.5]} 24. Kh2 {[%clk 0:00:15.8]} 24... Re8 {[%clk 0:00:49.8]} 25.
f4 {[%clk 0:00:16.1]} 25... Qe3 {[%clk 0:00:30]} 26. Re1 {[%clk 0:00:14.5]}
26... Qxe1 {[%clk 0:00:21.9]} 27. Bxe1 {[%clk 0:00:15.4]} 27... Rxe1 {[%clk
0:00:22.2]} 28. Bb3 {[%clk 0:00:02.8]} 28... Bg1+ {[%clk 0:00:20.4]} 29. Kh1
{[%clk 0:00:02.5]} 29... Be3+ {[%clk 0:00:16]} 30. Kh2 {[%clk 0:00:02.8]} 30...
Bxf4+ {[%clk 0:00:14.6]} 31. g3 {[%clk 0:00:03.4]} 31... Re3 {[%clk 0:00:15.2]}
32. Qd4 {[%clk 0:00:01.3]} 32... Bxg3+ {[%clk 0:00:13.2]} 33. Kg2 {[%clk
0:00:01.9]} 33... Be5 {[%clk 0:00:12.6]} 0-1

[Event "*** Titled Tuesday Blitz"]
[Site "Chess.com"]
[Date "2020.03.03"]
[Round "4"]
[White "moro182"]
[Black "GMSrinath"]
[Result "1-0"]
[WhiteElo "2669"]
[BlackElo "2871"]
[TimeControl "180+1"]
[EndTime "9:41:59 PST"]
[Termination "moro182 won by checkmate"]

1. d4 {[%clk 0:03:00.9]} 1... Nf6 {[%clk 0:02:59.5]} 2. c4 {[%clk 0:03:01.4]}
2... e6 {[%clk 0:02:59.9]} 3. Nc3 {[%clk 0:03:01.8]} 3... Bb4 {[%clk 0:02:59.1]}
4. Nf3 {[%clk 0:03:02.5]} 4... d5 {[%clk 0:02:58.8]} 5. Bg5 {[%clk 0:02:59.9]}
5... h6 {[%clk 0:02:58]} 6. Bxf6 {[%clk 0:03:00.2]} 6... Qxf6 {[%clk 0:02:58.9]}
7. Qa4+ {[%clk 0:03:00.2]} 7... Nc6 {[%clk 0:02:58.6]} 8. e3 {[%clk 0:03:00.8]}
8... O-O {[%clk 0:02:56.9]} 9. Rd1 {[%clk 0:03:00.8]} 9... Bd7 {[%clk
0:02:49.8]} 10. Qb3 {[%clk 0:02:58.5]} 10... a5 {[%clk 0:02:21]} 11. a3 {[%clk
0:02:52.5]} 11... a4 {[%clk 0:02:19.2]} 12. Qc2 {[%clk 0:02:52.6]} 12... Ba5
{[%clk 0:02:16.6]} 13. Bd3 {[%clk 0:02:45.7]} 13... dxc4 {[%clk 0:02:15.5]} 14.
Bxc4 {[%clk 0:02:46.6]} 14... Rfd8 {[%clk 0:02:08.5]} 15. O-O {[%clk 0:02:45.5]}
15... e5 {[%clk 0:02:07.8]} 16. Nd5 {[%clk 0:02:20.8]} 16... Qd6 {[%clk
0:01:50.1]} 17. Qe4 {[%clk 0:01:26.6]} 17... exd4 {[%clk 0:01:41.4]} 18. Nxd4
{[%clk 0:01:26.6]} 18... Qe5 {[%clk 0:01:09.4]} 19. Qf3 {[%clk 0:01:08.6]} 19...
Nxd4 {[%clk 0:00:55.7]} 20. exd4 {[%clk 0:01:08.1]} 20... Qg5 {[%clk 0:00:47.6]}
21. Ne3 {[%clk 0:00:53.6]} 21... Qf6 {[%clk 0:00:33.8]} 22. Qxf6 {[%clk
0:00:32.7]} 22... gxf6 {[%clk 0:00:34.7]} 23. Rc1 {[%clk 0:00:29]} 23... c6
{[%clk 0:00:31]} 24. Rfd1 {[%clk 0:00:29]} 24... Kg7 {[%clk 0:00:29.8]} 25. d5
{[%clk 0:00:29.3]} 25... Bb6 {[%clk 0:00:24.2]} 26. dxc6 {[%clk 0:00:27.9]}
26... Bxc6 {[%clk 0:00:25.1]} 27. Nf5+ {[%clk 0:00:28]} 27... Kg6 {[%clk
0:00:19.2]} 28. Bd3 {[%clk 0:00:24.4]} 28... Kg5 {[%clk 0:00:13.9]} 29. h4+
{[%clk 0:00:23.7]} 29... Kf4 {[%clk 0:00:10.6]} 30. g3+ {[%clk 0:00:13.1]} 30...
Kf3 {[%clk 0:00:10.5]} 31. Rc3 {[%clk 0:00:09.5]} 31... Bxf2+ {[%clk 0:00:09.7]}
32. Kh2 {[%clk 0:00:08.8]} 32... Kg4 {[%clk 0:00:05.2]} 33. Rc4+ {[%clk
0:00:04.8]} 33... Kf3 {[%clk 0:00:05.6]} 34. Rf4# {[%clk 0:00:03.6]} 1-0

[Event "*** Titled Tuesday Blitz"]
[Site "Chess.com"]
[Date "2020.03.03"]
[Round "4"]
[White "lasayon"]
[Black "floplover"]
[Result "1-0"]
[WhiteElo "2635"]
[BlackElo "2313"]
[TimeControl "180+1"]
[EndTime "9:41:59 PST"]
[Termination "lasayon won on time"]

1. Nf3 {[%clk 0:02:59.3]} 1... Nf6 {[%clk 0:02:59.1]} 2. c4 {[%clk 0:02:59]}
2... e6 {[%clk 0:02:48.2]} 3. g3 {[%clk 0:02:57.5]} 3... d5 {[%clk 0:02:48.3]}
4. Bg2 {[%clk 0:02:58.4]} 4... Be7 {[%clk 0:02:47.8]} 5. O-O {[%clk 0:02:59.3]}
5... O-O {[%clk 0:02:47.8]} 6. b3 {[%clk 0:02:59.2]} 6... c5 {[%clk 0:02:46.3]}
7. Bb2 {[%clk 0:02:58.5]} 7... d4 {[%clk 0:02:43]} 8. e3 {[%clk 0:02:54.3]} 8...
Nc6 {[%clk 0:02:41.5]} 9. exd4 {[%clk 0:02:54.2]} 9... cxd4 {[%clk 0:02:42.4]}
10. Re1 {[%clk 0:02:54.3]} 10... Re8 {[%clk 0:02:30]} 11. Ne5 {[%clk 0:02:38.1]}
11... Nxe5 {[%clk 0:02:27.7]} 12. Rxe5 {[%clk 0:02:39]} 12... Bd6 {[%clk
0:02:19.9]} 13. Re1 {[%clk 0:02:23.6]} 13... e5 {[%clk 0:02:19.2]} 14. d3 {[%clk
0:02:23.7]} 14... Bg4 {[%clk 0:02:06.2]} 15. Qc2 {[%clk 0:02:18.9]} 15... Qd7
{[%clk 0:01:51.6]} 16. Nd2 {[%clk 0:02:16.8]} 16... Bb4 {[%clk 0:01:43.5]} 17.
a3 {[%clk 0:02:15.3]} 17... Bxd2 {[%clk 0:01:43.2]} 18. Qxd2 {[%clk 0:02:16.2]}
18... Rad8 {[%clk 0:01:39.3]} 19. f4 {[%clk 0:02:10.4]} 19... exf4 {[%clk
0:01:27.2]} 20. Qxf4 {[%clk 0:02:10.8]} 20... Rxe1+ {[%clk 0:01:10.4]} 21. Rxe1
{[%clk 0:02:08.5]} 21... Bf5 {[%clk 0:01:10.8]} 22. Qf3 {[%clk 0:01:52.6]} 22...
b6 {[%clk 0:01:01.5]} 23. Re5 {[%clk 0:01:50.3]} 23... g6 {[%clk 0:00:57.2]} 24.
h3 {[%clk 0:01:40.9]} 24... h5 {[%clk 0:00:55.3]} 25. Qf4 {[%clk 0:01:32.1]}
25... Kg7 {[%clk 0:00:55]} 26. Rd5 {[%clk 0:01:27.4]} 26... Nxd5 {[%clk
0:00:53.5]} 27. Qxd4+ {[%clk 0:01:27.7]} 27... f6 {[%clk 0:00:48.6]} 28. Bxd5
{[%clk 0:01:27.5]} 28... Qd6 {[%clk 0:00:44.5]} 29. Kg2 {[%clk 0:01:18.5]} 29...
Re8 {[%clk 0:00:44.3]} 30. g4 {[%clk 0:01:15.2]} 30... hxg4 {[%clk 0:00:43]} 31.
hxg4 {[%clk 0:01:16.1]} 31... Bd7 {[%clk 0:00:18.2]} 32. g5 {[%clk 0:01:15.1]}
32... Bc6 {[%clk 0:00:09.2]} 33. Qxf6+ {[%clk 0:01:13.1]} 33... Qxf6 {[%clk
0:00:08]} 34. Bxf6+ {[%clk 0:01:13.8]} 34... Kh7 {[%clk 0:00:08.3]} 35. Bxc6
{[%clk 0:01:14.7]} 35... Re3 {[%clk 0:00:07.9]} 36. Be4 {[%clk 0:01:14.3]} 36...
Re2+ {[%clk 0:00:08.1]} 37. Kf3 {[%clk 0:01:14.3]} 37... Ra2 {[%clk 0:00:09]}
38. b4 {[%clk 0:01:05.9]} 38... Rxa3 {[%clk 0:00:09.1]} 39. b5 {[%clk
0:01:06.3]} 39... Ra2 {[%clk 0:00:07.4]} 40. Kf4 {[%clk 0:01:01.6]} 40... a5
{[%clk 0:00:03.2]} 41. bxa6 {[%clk 0:01:00.9]} 41... Rxa6 {[%clk 0:00:04.1]} 42.
d4 {[%clk 0:01:01.2]} 42... Ra4 {[%clk 0:00:04.2]} 43. Bd3 {[%clk 0:00:55.6]}
43... Ra3 {[%clk 0:00:03.8]} 44. Ke4 {[%clk 0:00:55.6]} 44... Rb3 {[%clk
0:00:03.6]} 45. d5 {[%clk 0:00:55.4]} 45... Kg8 {[%clk 0:00:03.2]} 46. d6 {[%clk
0:00:54.9]} 1-0